[Event "*** Titled Tuesday Blitz"]
[Site "Chess.com"]
[Date "2020.11.24"]
[Round "8"]
[White "ChessicallyInclined"]
[Black "aa175"]
[Result "1/2-1/2"]
[WhiteElo "2545"]
[BlackElo "2307"]
[TimeControl "180+1"]
[EndTime "11:47:04 PST"]
[Termination "Game drawn by repetition"]

1. d4 {[%clk 0:02:27.2]} 1... e5 {[%clk 0:02:53.1]} 2. dxe5 {[%clk 0:02:26.9]}
2... Nc6 {[%clk 0:02:53.4]} 3. Nf3 {[%clk 0:02:24.1]} 3... Qe7 {[%clk
0:02:53.7]} 4. Nc3 {[%clk 0:02:21.7]} 4... Nxe5 {[%clk 0:02:53.9]} 5. Bf4 {[%clk
0:02:18.1]} 5... Nxf3+ {[%clk 0:02:51.8]} 6. gxf3 {[%clk 0:02:19]} 6... c6
{[%clk 0:02:37.3]} 7. Qd2 {[%clk 0:02:02.1]} 7... d5 {[%clk 0:02:33.4]} 8. O-O-O
{[%clk 0:02:02]} 8... Nf6 {[%clk 0:02:31.7]} 9. e4 {[%clk 0:02:01.7]} 9... Be6
{[%clk 0:02:26.6]} 10. Bg5 {[%clk 0:01:53.5]} 10... dxe4 {[%clk 0:02:20.9]} 11.
fxe4 {[%clk 0:01:44.8]} 11... h6 {[%clk 0:02:20.5]} 12. Be3 {[%clk 0:01:26.8]}
12... Bg4 {[%clk 0:02:13]} 13. Be2 {[%clk 0:01:19.9]} 13... Bxe2 {[%clk
0:02:12.9]} 14. Qxe2 {[%clk 0:01:20.7]} 14... Nxe4 {[%clk 0:02:08.5]} 15. Nxe4
{[%clk 0:01:17.1]} 15... Qxe4 {[%clk 0:02:09.4]} 16. Rhe1 {[%clk 0:01:10.5]}
16... Qe6 {[%clk 0:00:51.9]} 17. Qf3 {[%clk 0:00:51.3]} 17... Bb4 {[%clk
0:00:35.2]} 18. Bd2 {[%clk 0:00:32.2]} 18... Bxd2+ {[%clk 0:00:33.6]} 19. Kxd2
{[%clk 0:00:32]} 19... O-O-O+ {[%clk 0:00:33.1]} 20. Kc1 {[%clk 0:00:26.6]}
20... Qxa2 {[%clk 0:00:26.3]} 21. Qf5+ {[%clk 0:00:16]} 21... Kb8 {[%clk
0:00:25.2]} 22. Qe5+ {[%clk 0:00:06.5]} 22... Ka8 {[%clk 0:00:25.1]} 23. b3
{[%clk 0:00:06.7]} 23... f6 {[%clk 0:00:09.3]} 24. Qc3 {[%clk 0:00:04.4]} 24...
Qa3+ {[%clk 0:00:07.2]} 25. Kb1 {[%clk 0:00:04.4]} 25... a6 {[%clk 0:00:06.7]}
26. Rxd8+ {[%clk 0:00:02.8]} 26... Rxd8 {[%clk 0:00:06.4]} 27. Qg3 {[%clk
0:00:03.2]} 27... Qb4 {[%clk 0:00:05.2]} 28. Re3 {[%clk 0:00:02.2]} 28... Rd1+
{[%clk 0:00:04.1]} 29. Kb2 {[%clk 0:00:02.8]} 29... Qd4+ {[%clk 0:00:04.2]} 30.
Rc3 {[%clk 0:00:03.3]} 30... Qd2 {[%clk 0:00:03.1]} 31. Rd3 {[%clk 0:00:02]}
31... Qc1+ {[%clk 0:00:02.8]} 32. Kc3 {[%clk 0:00:02.9]} 32... Qa1+ {[%clk
0:00:03]} 33. Kb4 {[%clk 0:00:03.3]} 33... Rxd3 {[%clk 0:00:02.9]} 34. Qxd3
{[%clk 0:00:04.2]} 34... Qe5 {[%clk 0:00:02]} 35. Qd8+ {[%clk 0:00:03.9]} 35...
Qb8 {[%clk 0:00:02.4]} 36. Qb6 {[%clk 0:00:03.9]} 36... Qd6+ {[%clk 0:00:02.6]}
37. Kc3 {[%clk 0:00:04.2]} 37... Qe5+ {[%clk 0:00:02.9]} 38. Kd2 {[%clk
0:00:04.5]} 38... Qf4+ {[%clk 0:00:02.9]} 39. Kd1 {[%clk 0:00:04.1]} 39... Qd6+
{[%clk 0:00:03.2]} 40. Kc1 {[%clk 0:00:04.6]} 40... Kb8 {[%clk 0:00:03.7]} 41.
Qe3 {[%clk 0:00:03.8]} 41... Qxh2 {[%clk 0:00:03.3]} 42. Qe8+ {[%clk 0:00:04]}
42... Ka7 {[%clk 0:00:03.8]} 43. Qe3+ {[%clk 0:00:03.9]} 43... Ka8 {[%clk
0:00:04.4]} 44. Qe7 {[%clk 0:00:04.3]} 44... Qf4+ {[%clk 0:00:04.3]} 45. Kb1
{[%clk 0:00:04.1]} 45... Qxf2 {[%clk 0:00:04.4]} 46. Qxg7 {[%clk 0:00:03.7]}
46... Qe1+ {[%clk 0:00:02.6]} 47. Kb2 {[%clk 0:00:03.6]} 47... Qe5+ {[%clk
0:00:02.8]} 48. Kb1 {[%clk 0:00:04.2]} 48... Qg5 {[%clk 0:00:02.5]} 49. Qf8+
{[%clk 0:00:04.3]} 49... Ka7 {[%clk 0:00:03]} 50. Qe7 {[%clk 0:00:02.4]} 50...
h5 {[%clk 0:00:03]} 51. Qe2 {[%clk 0:00:02.4]} 51... h4 {[%clk 0:00:03.2]} 52.
Qf2+ {[%clk 0:00:03]} 52... Ka8 {[%clk 0:00:03.4]} 53. Qf1 {[%clk 0:00:02.3]}
53... f5 {[%clk 0:00:02.5]} 54. Qf2 {[%clk 0:00:02.7]} 54... h3 {[%clk
0:00:02.2]} 55. Qf1 {[%clk 0:00:02.6]} 55... Qg2 {[%clk 0:00:02.3]} 56. Qxf5
{[%clk 0:00:01.7]} 56... h2 {[%clk 0:00:02.6]} 57. Qf8+ {[%clk 0:00:02.4]} 57...
Ka7 {[%clk 0:00:02.3]} 58. Qc5+ {[%clk 0:00:03.1]} 58... Kb8 {[%clk 0:00:02.9]}
59. Qf8+ {[%clk 0:00:03.8]} 59... Kc7 {[%clk 0:00:03.3]} 60. Qe7+ {[%clk
0:00:04.5]} 60... Kb6 {[%clk 0:00:03.9]} 61. Qb4+ {[%clk 0:00:05.2]} 61... Kc7
{[%clk 0:00:02.1]} 62. Qe7+ {[%clk 0:00:05.5]} 62... Kb8 {[%clk 0:00:02.8]} 63.
Qf8+ {[%clk 0:00:05.3]} 63... Ka7 {[%clk 0:00:03.7]} 64. Qc5+ {[%clk 0:00:05.6]}
64... Ka8 {[%clk 0:00:02.3]} 65. Qf8+ {[%clk 0:00:05.9]} 65... Ka7 {[%clk
0:00:03]} 1/2-1/2

[Event "*** Titled Tuesday Blitz"]
[Site "Chess.com"]
[Date "2020.11.24"]
[Round "8"]
[White "FMOlexandrProhorov"]
[Black "Loy_Konstantin"]
[Result "0-1"]
[WhiteElo "2195"]
[BlackElo "2386"]
[TimeControl "180+1"]
[EndTime "11:47:04 PST"]
[Termination "Loy_Konstantin won on time"]

1. Nf3 {[%clk 0:02:08.8]} 1... c5 {[%clk 0:02:57.6]} 2. c4 {[%clk 0:02:07]} 2...
Nf6 {[%clk 0:02:56.3]} 3. Nc3 {[%clk 0:02:06.5]} 3... Nc6 {[%clk 0:02:56]} 4. g3
{[%clk 0:02:06.8]} 4... g6 {[%clk 0:02:56.1]} 5. Bg2 {[%clk 0:02:07.1]} 5... Bg7
{[%clk 0:02:56.7]} 6. O-O {[%clk 0:02:07.3]} 6... O-O {[%clk 0:02:57.3]} 7. d4
{[%clk 0:02:07.6]} 7... cxd4 {[%clk 0:02:58.2]} 8. Nxd4 {[%clk 0:02:08.1]} 8...
d6 {[%clk 0:02:58.7]} 9. e3 {[%clk 0:01:59.9]} 9... Bd7 {[%clk 0:02:54.3]} 10.
b3 {[%clk 0:01:59.9]} 10... Rc8 {[%clk 0:02:52.3]} 11. Bb2 {[%clk 0:02:00.2]}
11... a6 {[%clk 0:02:42.5]} 12. Qd2 {[%clk 0:01:58.3]} 12... Re8 {[%clk
0:02:40.1]} 13. Rac1 {[%clk 0:01:57.5]} 13... Qa5 {[%clk 0:02:39.3]} 14. Rfd1
{[%clk 0:01:55.2]} 14... Qh5 {[%clk 0:02:36.5]} 15. Nd5 {[%clk 0:01:21.8]} 15...
Nxd5 {[%clk 0:02:28]} 16. Bxd5 {[%clk 0:01:07.6]} 16... Nxd4 {[%clk 0:02:19]}
17. Bxd4 {[%clk 0:01:02.1]} 17... Bxd4 {[%clk 0:02:08.7]} 18. exd4 {[%clk
0:00:53]} 18... Bc6 {[%clk 0:02:06.3]} 19. Bxc6 {[%clk 0:00:50.6]} 19... Rxc6
{[%clk 0:02:02.1]} 20. d5 {[%clk 0:00:48.1]} 20... Rc7 {[%clk 0:01:59.8]} 21.
Re1 {[%clk 0:00:48.5]} 21... Qf5 {[%clk 0:01:50.2]} 22. a4 {[%clk 0:00:46.5]}
22... Qf6 {[%clk 0:01:30.9]} 23. Rc3 {[%clk 0:00:37.4]} 23... b5 {[%clk
0:01:26]} 24. axb5 {[%clk 0:00:36.8]} 24... axb5 {[%clk 0:01:26]} 25. c5 {[%clk
0:00:18.5]} 25... dxc5 {[%clk 0:00:53.9]} 26. d6 {[%clk 0:00:18.6]} 26... Rd7
{[%clk 0:00:53.4]} 27. Rxc5 {[%clk 0:00:16.6]} 27... Rxd6 {[%clk 0:00:47.7]} 28.
Qb4 {[%clk 0:00:14.9]} 28... Red8 {[%clk 0:00:28.9]} 29. Qxb5 {[%clk 0:00:11]}
29... Rd1 {[%clk 0:00:25.7]} 30. Qe2 {[%clk 0:00:10.7]} 30... Rxe1+ {[%clk
0:00:20.9]} 31. Qxe1 {[%clk 0:00:11.6]} 31... Qd4 {[%clk 0:00:20.1]} 32. Rc1
{[%clk 0:00:10.2]} 32... e5 {[%clk 0:00:19.3]} 33. b4 {[%clk 0:00:10.2]} 33...
e4 {[%clk 0:00:18.2]} 34. Kg2 {[%clk 0:00:10.4]} 34... Qd5 {[%clk 0:00:16.8]}
35. Qe3 {[%clk 0:00:09.8]} 35... Rb8 {[%clk 0:00:13.6]} 36. Rb1 {[%clk 0:00:09]}
36... Rb5 {[%clk 0:00:06.7]} 37. h4 {[%clk 0:00:09.4]} 37... h5 {[%clk
0:00:06.6]} 38. Rc1 {[%clk 0:00:09.5]} 38... Kg7 {[%clk 0:00:02.4]} 39. Rc8
{[%clk 0:00:10.1]} 39... Rxb4 {[%clk 0:00:02.2]} 40. Rc3 {[%clk 0:00:10.2]}
40... Qd4 {[%clk 0:00:02]} 41. Rb3 {[%clk 0:00:09.9]} 41... Qxe3 {[%clk
0:00:02]} 42. Rxe3 {[%clk 0:00:10.8]} 42... f5 {[%clk 0:00:02.2]} 43. Rc3 {[%clk
0:00:10.9]} 43... Rb7 {[%clk 0:00:02.7]} 44. Ra3 {[%clk 0:00:11.8]} 44... Rf7
{[%clk 0:00:02.4]} 45. Ra6 {[%clk 0:00:12.7]} 45... Rf6 {[%clk 0:00:02.4]} 46.
Rc6 {[%clk 0:00:13.6]} 46... Rxc6 {[%clk 0:00:02.1]} 47. Kf1 {[%clk 0:00:03.9]}
47... Rc7 {[%clk 0:00:03]} 48. Ke2 {[%clk 0:00:04.3]} 48... Kf6 {[%clk
0:00:03.9]} 49. Ke3 {[%clk 0:00:05.2]} 49... g5 {[%clk 0:00:04.5]} 50. f3 {[%clk
0:00:05.5]} 50... gxh4 {[%clk 0:00:04.5]} 51. gxh4 {[%clk 0:00:05.7]} 51... exf3
{[%clk 0:00:04.9]} 52. Kxf3 {[%clk 0:00:06.6]} 52... Rc4 {[%clk 0:00:05.4]} 53.
Kg3 {[%clk 0:00:07.5]} 53... Rg4+ {[%clk 0:00:05.8]} 54. Kf2 {[%clk 0:00:08.4]}
54... Ke5 {[%clk 0:00:06.4]} 55. Kf3 {[%clk 0:00:08.7]} 55... f4 {[%clk
0:00:06.2]} 56. Kf2 {[%clk 0:00:08.7]} 56... Ke4 {[%clk 0:00:06.7]} 0-1

[Event "*** Titled Tuesday Blitz"]
[Site "Chess.com"]
[Date "2020.11.24"]
[Round "8"]
[White "Zajdanek"]
[Black "Michaelson_11"]
[Result "0-1"]
[WhiteElo "2287"]
[BlackElo "2147"]
[TimeControl "180+1"]
[EndTime "11:47:05 PST"]
[Termination "Michaelson_11 won by checkmate"]

1. f4 {[%clk 0:02:59.4]} 1... g6 {[%clk 0:02:58.5]} 2. Nf3 {[%clk 0:02:59.4]}
2... Bg7 {[%clk 0:02:59.4]} 3. e4 {[%clk 0:02:59.9]} 3... Nf6 {[%clk 0:03:00.3]}
4. Nc3 {[%clk 0:03:00]} 4... d6 {[%clk 0:03:00]} 5. d4 {[%clk 0:03:00.1]} 5...
O-O {[%clk 0:03:00.4]} 6. e5 {[%clk 0:03:00.6]} 6... dxe5 {[%clk 0:02:59.6]} 7.
fxe5 {[%clk 0:03:01.5]} 7... Nd5 {[%clk 0:02:59.8]} 8. Bc4 {[%clk 0:03:01.1]}
8... c6 {[%clk 0:02:59.1]} 9. O-O {[%clk 0:03:01.2]} 9... Bg4 {[%clk 0:02:58.4]}
10. Ne4 {[%clk 0:03:01.5]} 10... Nb6 {[%clk 0:02:45.4]} 11. Bb3 {[%clk
0:03:01.5]} 11... Na6 {[%clk 0:02:41.6]} 12. c3 {[%clk 0:03:01.1]} 12... Qd7
{[%clk 0:02:34.7]} 13. h3 {[%clk 0:02:55]} 13... Bxf3 {[%clk 0:02:30.2]} 14.
Qxf3 {[%clk 0:02:54.9]} 14... Nd5 {[%clk 0:02:22.1]} 15. Qg3 {[%clk 0:02:54.8]}
15... Rad8 {[%clk 0:02:16.3]} 16. Qh4 {[%clk 0:02:55.1]} 16... b6 {[%clk
0:01:56]} 17. Bh6 {[%clk 0:02:55]} 17... Nac7 {[%clk 0:01:32.8]} 18. Ng5 {[%clk
0:02:45.7]} 18... f6 {[%clk 0:01:31]} 19. Bxg7 {[%clk 0:02:31.6]} 19... fxg5
{[%clk 0:01:29.3]} 20. Qh6 {[%clk 0:02:26.7]} 20... Rxf1+ {[%clk 0:01:21.7]} 21.
Rxf1 {[%clk 0:02:26.4]} 21... Ne6 {[%clk 0:01:19.7]} 22. Bh8 {[%clk 0:02:22.1]}
22... Qe8 {[%clk 0:00:56]} 23. c4 {[%clk 0:01:54]} 23... Ndf4 {[%clk 0:00:40]}
24. g3 {[%clk 0:01:44.5]} 24... Ne2+ {[%clk 0:00:39.2]} 25. Kh2 {[%clk
0:01:40.9]} 25... N2xd4 {[%clk 0:00:38.8]} 26. Bf6 {[%clk 0:01:28]} 26... exf6
{[%clk 0:00:34.5]} 27. exf6 {[%clk 0:01:28.9]} 27... Qf7 {[%clk 0:00:32.8]} 28.
Bd1 {[%clk 0:01:28.5]} 28... Nf5 {[%clk 0:00:29.9]} 29. Rxf5 {[%clk 0:01:26.6]}
29... gxf5 {[%clk 0:00:30.8]} 30. Bh5 {[%clk 0:01:27.5]} 30... Rd2+ {[%clk
0:00:22.1]} 31. Kg1 {[%clk 0:01:27.8]} 31... Rd1+ {[%clk 0:00:06.5]} 32. Bxd1
{[%clk 0:01:25.3]} 32... Qg6 {[%clk 0:00:06.5]} 33. Qh5 {[%clk 0:01:16.6]} 33...
Qxh5 {[%clk 0:00:05]} 34. Bxh5 {[%clk 0:01:17.5]} 34... Nd4 {[%clk 0:00:05.2]}
35. Kf2 {[%clk 0:01:16.3]} 35... Kf8 {[%clk 0:00:05.5]} 36. Ke3 {[%clk
0:01:15.8]} 36... Nc2+ {[%clk 0:00:05.7]} 37. Kd2 {[%clk 0:01:14.2]} 37... Nd4
{[%clk 0:00:04.4]} 38. Kd3 {[%clk 0:01:13.4]} 38... c5 {[%clk 0:00:04.8]} 39. b4
{[%clk 0:01:13]} 39... Ne6 {[%clk 0:00:04.3]} 40. bxc5 {[%clk 0:01:07.4]} 40...
bxc5 {[%clk 0:00:05.2]} 41. Kc3 {[%clk 0:01:07.9]} 41... Nd4 {[%clk 0:00:04.9]}
42. Kb2 {[%clk 0:01:04.2]} 42... f4 {[%clk 0:00:05.1]} 43. gxf4 {[%clk
0:01:04.1]} 43... gxf4 {[%clk 0:00:04.7]} 44. Kc3 {[%clk 0:01:05]} 44... Nf5
{[%clk 0:00:04]} 45. Kd3 {[%clk 0:01:04.7]} 45... Ng3 {[%clk 0:00:04.4]} 46. Bg4
{[%clk 0:01:01.2]} 46... Kf7 {[%clk 0:00:05]} 47. a4 {[%clk 0:00:58.8]} 47...
Kxf6 {[%clk 0:00:05.1]} 48. a5 {[%clk 0:00:59.7]} 48... Ke5 {[%clk 0:00:05.4]}
49. a6 {[%clk 0:00:59.9]} 49... Ne4 {[%clk 0:00:05.5]} 50. Bf3 {[%clk
0:00:59.3]} 50... Ng5 {[%clk 0:00:04.6]} 51. Bg4 {[%clk 0:00:59.9]} 51... h5
{[%clk 0:00:03.5]} 52. Bxh5 {[%clk 0:01:00]} 52... Nxh3 {[%clk 0:00:04]} 53. Be8
{[%clk 0:00:59.5]} 53... Nf2+ {[%clk 0:00:04.3]} 54. Ke2 {[%clk 0:01:00]} 54...
Ne4 {[%clk 0:00:04.3]} 55. Bc6 {[%clk 0:00:59.9]} 55... Nc3+ {[%clk 0:00:04]}
56. Kf3 {[%clk 0:00:59.6]} 56... Nb1 {[%clk 0:00:02.6]} 57. Bb7 {[%clk
0:01:00.5]} 57... Nd2+ {[%clk 0:00:02.7]} 58. Kg4 {[%clk 0:01:00.6]} 58... Nxc4
{[%clk 0:00:03.6]} 59. Bf3 {[%clk 0:00:59.8]} 59... Nd6 {[%clk 0:00:03.8]} 60.
Be2 {[%clk 0:01:00.7]} 60... c4 {[%clk 0:00:03.8]} 61. Kf3 {[%clk 0:01:01.6]}
61... c3 {[%clk 0:00:03.3]} 62. Bd3 {[%clk 0:01:02.5]} 62... Nc8 {[%clk
0:00:02.9]} 63. Ke2 {[%clk 0:01:02.7]} 63... Nb6 {[%clk 0:00:03.5]} 64. Bc2
{[%clk 0:01:03.6]} 64... Kd4 {[%clk 0:00:04]} 65. Kf3 {[%clk 0:01:04.5]} 65...
Nd5 {[%clk 0:00:04.3]} 66. Bb1 {[%clk 0:01:04.5]} 66... Nb4 {[%clk 0:00:04]} 67.
Kxf4 {[%clk 0:01:05.4]} 67... c2 {[%clk 0:00:04.6]} 68. Bxc2 {[%clk 0:01:06]}
68... Nxc2 {[%clk 0:00:05.5]} 69. Kf3 {[%clk 0:01:06.6]} 69... Nb4 {[%clk
0:00:04.3]} 70. Ke2 {[%clk 0:01:07.5]} 70... Nxa6 {[%clk 0:00:05.2]} 71. Kd2
{[%clk 0:01:08.4]} 71... Kc4 {[%clk 0:00:05.6]} 72. Kc2 {[%clk 0:01:09.3]} 72...
Kb4 {[%clk 0:00:05.9]} 73. Kb2 {[%clk 0:01:10.2]} 73... Nc5 {[%clk 0:00:06.6]}
74. Ka2 {[%clk 0:01:09.6]} 74... a5 {[%clk 0:00:07]} 75. Kb2 {[%clk 0:01:10.3]}
75... a4 {[%clk 0:00:07.5]} 76. Ka2 {[%clk 0:01:11.2]} 76... a3 {[%clk
0:00:07.4]} 77. Ka1 {[%clk 0:01:11.5]} 77... Kb3 {[%clk 0:00:07.5]} 78. Kb1
{[%clk 0:01:12.4]} 78... Na6 {[%clk 0:00:07.3]} 79. Kc1 {[%clk 0:01:12.8]} 79...
Nb4 {[%clk 0:00:07.3]} 80. Kb1 {[%clk 0:01:13.4]} 80... a2+ {[%clk 0:00:07.8]}
81. Ka1 {[%clk 0:01:14.3]} 81... Nc2# {[%clk 0:00:08.2]} 0-1

[Event "*** Titled Tuesday Blitz"]
[Site "Chess.com"]
[Date "2020.11.24"]
[Round "8"]
[White "AlexeiShirov"]
[Black "Sebastian"]
[Result "1-0"]
[WhiteElo "2850"]
[BlackElo "2910"]
[TimeControl "180+1"]
[EndTime "11:47:06 PST"]
[Termination "AlexeiShirov won on time"]

1. e4 {[%clk 0:03:00.9]} 1... e5 {[%clk 0:02:59.5]} 2. Nf3 {[%clk 0:03:00.6]}
2... Nc6 {[%clk 0:02:59.8]} 3. Bb5 {[%clk 0:03:00.4]} 3... Nf6 {[%clk
0:02:59.6]} 4. d3 {[%clk 0:02:59.5]} 4... Bc5 {[%clk 0:02:58.9]} 5. c3 {[%clk
0:02:58.3]} 5... O-O {[%clk 0:02:57.7]} 6. Bg5 {[%clk 0:02:57.5]} 6... h6 {[%clk
0:02:40.8]} 7. Bh4 {[%clk 0:02:57.3]} 7... Be7 {[%clk 0:02:39.7]} 8. O-O {[%clk
0:02:56.6]} 8... d6 {[%clk 0:02:33.9]} 9. Bg3 {[%clk 0:02:56.6]} 9... a6 {[%clk
0:02:14.6]} 10. Bxc6 {[%clk 0:02:52.5]} 10... bxc6 {[%clk 0:02:14.2]} 11. Nbd2
{[%clk 0:02:52.4]} 11... c5 {[%clk 0:01:35.5]} 12. d4 {[%clk 0:02:52.2]} 12...
cxd4 {[%clk 0:01:33.4]} 13. cxd4 {[%clk 0:02:52.2]} 13... exd4 {[%clk
0:01:33.8]} 14. Nxd4 {[%clk 0:02:52.3]} 14... Bb7 {[%clk 0:01:34]} 15. Qc2
{[%clk 0:02:47.8]} 15... Re8 {[%clk 0:01:30.6]} 16. Nc6 {[%clk 0:02:42.9]} 16...
Qd7 {[%clk 0:01:26]} 17. Nxe7+ {[%clk 0:02:40.8]} 17... Rxe7 {[%clk 0:01:23.1]}
18. f3 {[%clk 0:02:40.9]} 18... d5 {[%clk 0:01:16.8]} 19. e5 {[%clk 0:02:34.9]}
19... Nh5 {[%clk 0:01:13.9]} 20. Rac1 {[%clk 0:02:11.8]} 20... Nxg3 {[%clk
0:00:41.7]} 21. hxg3 {[%clk 0:02:10.6]} 21... Rxe5 {[%clk 0:00:42.3]} 22. Qxc7
{[%clk 0:02:09.4]} 22... Qxc7 {[%clk 0:00:17]} 23. Rxc7 {[%clk 0:02:08.2]} 23...
Rb8 {[%clk 0:00:15.2]} 24. Nb3 {[%clk 0:02:01]} 24... Bc8 {[%clk 0:00:14.6]} 25.
Kf2 {[%clk 0:01:51.8]} 25... Be6 {[%clk 0:00:14.5]} 26. Rc2 {[%clk 0:01:39.7]}
26... Bf5 {[%clk 0:00:07.6]} 27. Rd2 {[%clk 0:01:39.2]} 27... h5 {[%clk
0:00:06.9]} 28. Nd4 {[%clk 0:01:38.5]} 28... Bd7 {[%clk 0:00:06.3]} 29. Rc1
{[%clk 0:01:38.1]} 29... Rb7 {[%clk 0:00:06.5]} 30. b3 {[%clk 0:01:34.9]} 30...
g6 {[%clk 0:00:06.2]} 31. Re2 {[%clk 0:01:33.9]} 31... Rxe2+ {[%clk 0:00:05]}
32. Kxe2 {[%clk 0:01:33.4]} 32... Kf8 {[%clk 0:00:05]} 33. Rc5 {[%clk
0:01:32.3]} 33... Be6 {[%clk 0:00:04.4]} 34. Rc6 {[%clk 0:01:29.3]} 34... a5
{[%clk 0:00:03.8]} 35. Ra6 {[%clk 0:01:28.3]} 35... Bd7 {[%clk 0:00:01.9]} 36.
Rxa5 {[%clk 0:01:27.4]} 36... Ke7 {[%clk 0:00:02.5]} 37. Rxd5 {[%clk 0:01:26.5]}
37... Ra7 {[%clk 0:00:02.9]} 38. a4 {[%clk 0:01:25.3]} 38... Rb7 {[%clk
0:00:03.2]} 39. Kd3 {[%clk 0:01:21.2]} 39... f6 {[%clk 0:00:03.7]} 40. a5 {[%clk
0:01:18.6]} 40... Rb8 {[%clk 0:00:04]} 41. a6 {[%clk 0:01:15.2]} 41... g5 {[%clk
0:00:04.4]} 42. Ra5 {[%clk 0:01:11.2]} 42... Kd6 {[%clk 0:00:04.5]} 43. a7
{[%clk 0:01:06.3]} 43... Ra8 {[%clk 0:00:04.8]} 44. Ra6+ {[%clk 0:01:04.8]}
44... Kc7 {[%clk 0:00:05.1]} 45. Ke4 {[%clk 0:01:01.6]} 45... g4 {[%clk
0:00:03.7]} 46. fxg4 {[%clk 0:00:58.2]} 46... hxg4 {[%clk 0:00:02.2]} 47. b4
{[%clk 0:00:56.4]} 47... Kb7 {[%clk 0:00:02.4]} 48. Ra5 {[%clk 0:00:50.1]} 48...
Rxa7 {[%clk 0:00:01.8]} 49. Rxa7+ {[%clk 0:00:48.2]} 49... Kxa7 {[%clk
0:00:02.7]} 50. Kd5 {[%clk 0:00:48.1]} 50... Kb6 {[%clk 0:00:02.7]} 51. Kd6
{[%clk 0:00:48.2]} 51... Bc8 {[%clk 0:00:02.9]} 52. Ke7 {[%clk 0:00:48.4]} 52...
f5 {[%clk 0:00:03.2]} 53. Kf6 {[%clk 0:00:48.4]} 53... Bd7 {[%clk 0:00:02.5]}
54. Ke5 {[%clk 0:00:46]} 54... Bc8 {[%clk 0:00:02.6]} 55. Kf4 {[%clk 0:00:44.9]}
55... Bd7 {[%clk 0:00:02.2]} 56. Nxf5 {[%clk 0:00:43.9]} 56... Kb5 {[%clk
0:00:02.6]} 57. Kxg4 {[%clk 0:00:43.4]} 57... Kxb4 {[%clk 0:00:03.1]} 58. Kf4
{[%clk 0:00:43.5]} 58... Kc5 {[%clk 0:00:03.4]} 59. Ke5 {[%clk 0:00:43.2]} 59...
Bc6 {[%clk 0:00:02.2]} 60. Ne3 {[%clk 0:00:43]} 60... Kb6 {[%clk 0:00:01.9]} 61.
Kd6 {[%clk 0:00:41.4]} 61... Kb7 {[%clk 0:00:02.3]} 62. g4 {[%clk 0:00:41.1]}
62... Be4 {[%clk 0:00:02.6]} 63. g5 {[%clk 0:00:40]} 63... Kc8 {[%clk
0:00:02.8]} 64. Ke7 {[%clk 0:00:39.3]} 64... Kc7 {[%clk 0:00:03.3]} 65. g4
{[%clk 0:00:39]} 65... Kc6 {[%clk 0:00:03.5]} 66. Kf6 {[%clk 0:00:37.1]} 66...
Kd7 {[%clk 0:00:03]} 67. g6 {[%clk 0:00:37.1]} 67... Ke8 {[%clk 0:00:03.1]} 68.
g7 {[%clk 0:00:36.8]} 68... Bh7 {[%clk 0:00:03.2]} 69. Nf5 {[%clk 0:00:36.5]}
69... Bg8 {[%clk 0:00:01.8]} 70. Nh6 {[%clk 0:00:36.3]} 1-0

[Event "*** Titled Tuesday Blitz"]
[Site "Chess.com"]
[Date "2020.11.24"]
[Round "8"]
[White "RestartingChess"]
[Black "SHIVACalypso"]
[Result "1-0"]
[WhiteElo "2548"]
[BlackElo "2421"]
[TimeControl "180+1"]
[EndTime "11:47:12 PST"]
[Termination "RestartingChess won on time"]

1. e4 {[%clk 0:03:00.9]} 1... e6 {[%clk 0:02:59.5]} 2. d4 {[%clk 0:03:00.7]}
2... d5 {[%clk 0:02:59.9]} 3. exd5 {[%clk 0:03:01.6]} 3... exd5 {[%clk
0:03:00.4]} 4. c4 {[%clk 0:03:02.5]} 4... Nf6 {[%clk 0:03:00]} 5. Nc3 {[%clk
0:03:02.9]} 5... Bb4 {[%clk 0:03:00.1]} 6. Nf3 {[%clk 0:03:03.6]} 6... O-O
{[%clk 0:02:54.2]} 7. Be2 {[%clk 0:03:04.1]} 7... dxc4 {[%clk 0:02:54.3]} 8. O-O
{[%clk 0:03:04.5]} 8... Nc6 {[%clk 0:02:44.1]} 9. Bxc4 {[%clk 0:03:04.7]} 9...
Bg4 {[%clk 0:02:41.5]} 10. Be3 {[%clk 0:03:05.1]} 10... Rb8 {[%clk 0:02:35.8]}
11. a3 {[%clk 0:03:02]} 11... Bd6 {[%clk 0:02:26.3]} 12. h3 {[%clk 0:03:01.7]}
12... Bh5 {[%clk 0:02:23.3]} 13. b4 {[%clk 0:02:57.3]} 13... a6 {[%clk 0:02:21]}
14. Rc1 {[%clk 0:02:56.6]} 14... Ne7 {[%clk 0:02:13.2]} 15. Bg5 {[%clk
0:02:55.5]} 15... Nc6 {[%clk 0:01:36.7]} 16. Nd5 {[%clk 0:02:47.3]} 16... Be7
{[%clk 0:01:21]} 17. Nxe7+ {[%clk 0:02:45.8]} 17... Qxe7 {[%clk 0:01:21.9]} 18.
g4 {[%clk 0:02:31.5]} 18... Bg6 {[%clk 0:01:18.7]} 19. d5 {[%clk 0:02:31]} 19...
Ne5 {[%clk 0:01:15.5]} 20. Re1 {[%clk 0:02:30.6]} 20... Nxf3+ {[%clk 0:01:13.9]}
21. Qxf3 {[%clk 0:02:31.5]} 21... Qd6 {[%clk 0:01:05.9]} 22. Bf4 {[%clk
0:02:10.9]} 22... Qd7 {[%clk 0:00:55.5]} 23. Bb3 {[%clk 0:02:08.7]} 23... Rbc8
{[%clk 0:00:51.5]} 24. Be5 {[%clk 0:01:53.3]} 24... Ne8 {[%clk 0:00:49.3]} 25.
Bb2 {[%clk 0:01:47.2]} 25... Nd6 {[%clk 0:00:46.4]} 26. Qc3 {[%clk 0:01:35.3]}
26... f6 {[%clk 0:00:45.2]} 27. Re3 {[%clk 0:01:33]} 27... Bf7 {[%clk
0:00:43.6]} 28. Rce1 {[%clk 0:01:33]} 28... Rfe8 {[%clk 0:00:42.6]} 29. Rxe8+
{[%clk 0:01:30.1]} 29... Rxe8 {[%clk 0:00:43.5]} 30. Rxe8+ {[%clk 0:01:30.3]}
30... Nxe8 {[%clk 0:00:43.3]} 31. Qc5 {[%clk 0:01:09.2]} 31... Nd6 {[%clk
0:00:33]} 32. Kg2 {[%clk 0:01:06]} 32... h5 {[%clk 0:00:27.9]} 33. g5 {[%clk
0:00:51.9]} 33... fxg5 {[%clk 0:00:23.5]} 34. Qd4 {[%clk 0:00:52.2]} 34... Bg6
{[%clk 0:00:22.9]} 35. Qe5 {[%clk 0:00:48.2]} 35... Qf7 {[%clk 0:00:20.2]} 36.
Qxg5 {[%clk 0:00:38.7]} 36... Be4+ {[%clk 0:00:19.8]} 37. Kf1 {[%clk 0:00:33.2]}
37... Nf5 {[%clk 0:00:10.9]} 38. Qd2 {[%clk 0:00:13]} 38... Nd6 {[%clk
0:00:10.5]} 39. Qd4 {[%clk 0:00:12.6]} 39... Bf5 {[%clk 0:00:09.2]} 40. Qe5
{[%clk 0:00:12.3]} 40... Bxh3+ {[%clk 0:00:08.6]} 41. Ke1 {[%clk 0:00:11.5]}
41... Bd7 {[%clk 0:00:08.9]} 42. Qc3 {[%clk 0:00:09.9]} 42... Qe7+ {[%clk
0:00:07.7]} 43. Kd1 {[%clk 0:00:08.2]} 43... Qf7 {[%clk 0:00:07.2]} 44. Qd4
{[%clk 0:00:04.5]} 44... Bg4+ {[%clk 0:00:06.9]} 45. Kc1 {[%clk 0:00:05]} 45...
Bf5 {[%clk 0:00:05.2]} 46. Bd1 {[%clk 0:00:03.1]} 46... Bg6 {[%clk 0:00:04.6]}
47. f4 {[%clk 0:00:02.6]} 47... Nf5 {[%clk 0:00:04.3]} 48. Qe5 {[%clk
0:00:02.7]} 48... Nd6 {[%clk 0:00:04.6]} 49. Bc2 {[%clk 0:00:01.6]} 49... Bxc2
{[%clk 0:00:04.3]} 50. Kxc2 {[%clk 0:00:02.5]} 50... Qf5+ {[%clk 0:00:05]} 51.
Qxf5 {[%clk 0:00:02.8]} 51... Nxf5 {[%clk 0:00:05.9]} 52. Be5 {[%clk 0:00:03.3]}
52... Nd6 {[%clk 0:00:06.3]} 53. Kd3 {[%clk 0:00:03.9]} 53... Kf7 {[%clk
0:00:06.2]} 54. Ke3 {[%clk 0:00:04.8]} 54... Kg6 {[%clk 0:00:06]} 55. Kf3 {[%clk
0:00:05.7]} 55... Kf5 {[%clk 0:00:06.5]} 56. Bxg7 {[%clk 0:00:06.3]} 56... h4
{[%clk 0:00:06.3]} 57. Be5 {[%clk 0:00:07.2]} 57... Nb5 {[%clk 0:00:04.7]} 58.
a4 {[%clk 0:00:07]} 58... Nd6 {[%clk 0:00:05.1]} 59. Bd4 {[%clk 0:00:07.1]}
59... b6 {[%clk 0:00:04.6]} 60. Bf2 {[%clk 0:00:07.3]} 60... b5 {[%clk
0:00:04.8]} 61. axb5 {[%clk 0:00:07.1]} 61... axb5 {[%clk 0:00:05.5]} 62. Bxh4
{[%clk 0:00:07.8]} 62... Ne4 {[%clk 0:00:05]} 63. Bd8 {[%clk 0:00:07.2]} 1-0